[Event "FIDE Women World Blitz 2021"]
[Site "Warsaw"]
[Date "2021.12.29"]
[Round "2.2"]
[White "Koneru, Humpy"]
[Black "Badelka, Olga"]
[Result "1-0"]
[ECO "D38"]
[WhiteElo "2586"]
[BlackElo "2188"]
[Annotator "ChessBase"]
[PlyCount "39"]
[EventDate "2021.12.29"]
[EventType "swiss"]
[EventCountry "POL"]
[Tiebreak "Cut1 Buchholz"]
[SourceTitle "playchess.com"]
[Source "ChessBase"]
[SourceQuality "1"]
[TimeControl "180+2"]

1. d4 {[%emt 0:00:01]} Nf6 {[%emt 0:00:01]} 2. c4 {[%emt 0:00:02]} e6 {[%emt 0:
00:01]} 3. Nf3 {[%emt 0:00:02]} d5 {[%emt 0:00:01]} 4. Nc3 {[%emt 0:00:02]} Bb4
{[%emt 0:00:01]} 5. Qa4+ {[%emt 0:00:04]} Nc6 {[%emt 0:00:01]} 6. e3 {[%emt 0:
00:01]} O-O {[%emt 0:00:05]} 7. Qc2 {[%emt 0:00:02]} dxc4 {[%emt 0:00:08]} 8.
Bxc4 {[%emt 0:00:04]} Bd6 {[%emt 0:00:01]} 9. O-O {[%emt 0:00:23]} e5 {[%emt 0:
00:04]} 10. h3 {[%emt 0:00:03]} exd4 {[%emt 0:00:15]} 11. exd4 {[%emt 0:00:02]}
h6 {[%emt 0:00:01]} 12. a3 {[%emt 0:00:15]} a6 {[%emt 0:00:02]} 13. Re1 {
[%emt 0:00:34]} b5 {[%emt 0:00:15]} 14. Ba2 {[%emt 0:00:04]} Bb7 {[%emt 0:00:
13]} 15. Bxh6 {[%emt 0:00:22]} gxh6 {[%emt 0:00:44]} 16. Qg6+ {[%emt 0:00:02]}
Kh8 {[%emt 0:00:00]} 17. Qxh6+ {[%emt 0:00:01]} Nh7 {[%emt 0:00:04]} 18. Ne4 {
[%emt 0:00:24]} f5 {[%emt 0:01:15]} 19. Nh4 {[%emt 0:00:23]} Ne7 {[%emt 0:00:
19]} 20. Ng5 {[%emt 0:00:05]} 1-0

[Event "FIDE Women World Blitz 2021"]
[Site "Warsaw"]
[Date "2021.12.29"]
[Round "2.2"]
[White "Smirnova, Ekaterina"]
[Black "Girya, Olga"]
[Result "0-1"]
[ECO "D26"]
[WhiteElo "2196"]
[BlackElo "2402"]
[Annotator "NA"]
[PlyCount "78"]
[EventDate "2021.12.29"]
[EventType "swiss"]
[EventCountry "POL"]
[Tiebreak "Cut1 Buchholz"]
[SourceTitle "playchess.com"]
[Source "ChessBase"]
[SourceQuality "1"]
[TimeControl "180+2"]

1. d4 {[%emt 0:00:01]} Nf6 {[%emt 0:00:01]} 2. c4 {[%emt 0:00:01]} e6 {[%emt 0:
00:00]} 3. Nf3 {[%emt 0:00:01]} d5 {[%emt 0:00:01]} 4. Nc3 {[%emt 0:00:01]} Be7
{[%emt 0:00:01]} 5. Bf4 {[%emt 0:00:02]} dxc4 {[%emt 0:00:02]} 6. e3 {[%emt 0:
00:03]} a6 {[%emt 0:00:04]} 7. a4 {[%emt 0:00:04]} c5 {[%emt 0:00:01]} 8. Bxc4
{[%emt 0:00:03]} cxd4 {[%emt 0:00:01]} 9. exd4 {[%emt 0:00:02]} Nc6 {[%emt 0:
00:01]} 10. O-O {[%emt 0:00:04]} O-O {[%emt 0:00:02]} 11. Re1 {[%emt 0:00:10]}
Nb4 {[%emt 0:00:16]} 12. Ne5 {[%emt 0:00:10]} Nbd5 {[%emt 0:00:21]} 13. Bg3 {
[%emt 0:00:20]} Bd7 {[%emt 0:00:17]} 14. Qb3 {[%emt 0:00:29]} Bc6 {[%emt 0:00:
03]} 15. Nxc6 {[%emt 0:00:06]} bxc6 {[%emt 0:00:01]} 16. a5 {[%emt 0:00:03]}
Nh5 {[%emt 0:01:07]} 17. Be5 {[%emt 0:00:10]} f6 {[%emt 0:00:01]} 18. Bg3 {
[%emt 0:00:09]} Nxg3 {[%emt 0:00:01]} 19. hxg3 {[%emt 0:00:01]} Rb8 {[%emt 0:
00:12]} 20. Qc2 {[%emt 0:00:03]} Qd6 {[%emt 0:00:20]} 21. Na4 {[%emt 0:00:16]}
Kh8 {[%emt 0:00:15]} 22. Qe4 {[%emt 0:00:06]} Nc7 {[%emt 0:00:16]} 23. Bd3 {
[%emt 0:00:07]} f5 {[%emt 0:00:02]} 24. Qe3 {[%emt 0:00:16]} Bf6 {[%emt 0:00:
00]} 25. g4 {[%emt 0:00:22]} Bxd4 {[%emt 0:00:02]} 26. Qh3 {[%emt 0:00:05]} Qf4
{[%emt 0:00:01]} 27. Re2 {[%emt 0:00:21]} Rf6 {[%emt 0:00:01]} 28. gxf5 {
[%emt 0:00:09]} Rh6 {[%emt 0:00:03]} 29. g3 {[%emt 0:00:06]} Rxh3 {[%emt 0:00:
03]} 30. gxf4 {[%emt 0:00:01]} Rxd3 {[%emt 0:00:01]} 31. fxe6 {[%emt 0:00:01]}
Re8 {[%emt 0:00:15]} 32. f5 {[%emt 0:00:03]} g6 {[%emt 0:00:00]} 33. fxg6 {
[%emt 0:00:05]} hxg6 {[%emt 0:00:03]} 34. Rae1 {[%emt 0:00:01]} Re7 {[%emt 0:
00:04]} 35. Kg2 {[%emt 0:00:01]} Kg7 {[%emt 0:00:02]} 36. Nb6 {[%emt 0:00:01]}
Bxb6 {[%emt 0:00:05]} 37. axb6 {[%emt 0:00:01]} Nd5 {[%emt 0:00:01]} 38. b7 {
[%emt 0:00:02]} Rb3 {[%emt 0:00:01]} 39. Rc1 {[%emt 0:00:03]} Nf4+ {[%emt 0:00:
01]} 0-1

[Event "FIDE Women World Blitz 2021"]
[Site "Warsaw"]
[Date "2021.12.29"]
[Round "2.3"]
[White "Garifullina, Leya"]
[Black "Kubicka, Anna"]
[Result "1-0"]
[ECO "B90"]
[WhiteElo "2416"]
[BlackElo "2273"]
[Annotator "NA"]
[PlyCount "51"]
[EventDate "2021.12.29"]
[EventType "swiss"]
[EventCountry "POL"]
[Tiebreak "Cut1 Buchholz"]
[SourceTitle "playchess.com"]
[Source "ChessBase"]
[SourceQuality "1"]
[TimeControl "180+2"]

1. e4 {[%emt 0:00:01]} c5 {[%emt 0:00:01]} 2. Nf3 {[%emt 0:00:02]} d6 {[%emt 0:
00:00]} 3. d4 {[%emt 0:00:01]} cxd4 {[%emt 0:00:02]} 4. Nxd4 {[%emt 0:00:02]}
Nf6 {[%emt 0:00:01]} 5. Nc3 {[%emt 0:00:02]} a6 {[%emt 0:00:01]} 6. h3 {
[%emt 0:00:01]} e5 {[%emt 0:00:01]} 7. Nde2 {[%emt 0:00:02]} b5 {[%emt 0:00:01]
} 8. Ng3 {[%emt 0:00:02]} Be7 {[%emt 0:00:07]} 9. Bd3 {[%emt 0:00:03]} O-O {
[%emt 0:00:01]} 10. O-O {[%emt 0:00:02]} Nc6 {[%emt 0:00:03]} 11. Be3 {[%emt 0:
00:21]} Be6 {[%emt 0:00:11]} 12. Nh5 {[%emt 0:00:17]} Nxh5 {[%emt 0:00:06]} 13.
Qxh5 {[%emt 0:00:01]} Nb4 {[%emt 0:00:03]} 14. Rfd1 {[%emt 0:00:03]} Qc7 {
[%emt 0:00:15]} 15. a3 {[%emt 0:00:01]} Nxd3 {[%emt 0:00:13]} 16. Rxd3 {
[%emt 0:00:11]} Rfd8 {[%emt 0:00:10]} 17. Bg5 {[%emt 0:00:01]} Bxg5 {[%emt 0:
00:03]} 18. Qxg5 {[%emt 0:00:02]} f6 {[%emt 0:00:04]} 19. Qe3 {[%emt 0:00:05]}
Rab8 {[%emt 0:00:02]} 20. Rad1 {[%emt 0:00:02]} a5 {[%emt 0:00:04]} 21. R1d2 {
[%emt 0:00:18]} Bc4 {[%emt 0:00:13]} 22. Nd5 {[%emt 0:00:02]} Bxd5 {[%emt 0:00:
01]} 23. Rxd5 {[%emt 0:00:01]} b4 {[%emt 0:00:04]} 24. Kh2 {[%emt 0:00:08]} Rd7
{[%emt 0:00:43]} 25. Qb3 {[%emt 0:00:02]} bxa3 {[%emt 0:00:10]} 26. Rb5+ {
[%emt 0:00:05]} 1-0

[Event "FIDE Women World Blitz 2021"]
[Site "Warsaw"]
[Date "2021.12.29"]
[Round "2.3"]
[White "Fernandez, Maria Florencia"]
[Black "Stefanova, Antoaneta"]
[Result "1-0"]
[ECO "D43"]
[WhiteElo "2184"]
[BlackElo "2475"]
[Annotator "ChessBase"]
[PlyCount "75"]
[EventDate "2021.12.29"]
[EventType "swiss"]
[EventCountry "POL"]
[Tiebreak "Cut1 Buchholz"]
[SourceTitle "playchess.com"]
[Source "ChessBase"]
[SourceQuality "1"]
[TimeControl "180+2"]

1. d4 {[%emt 0:00:02]} d5 {[%emt 0:00:01]} 2. c4 {[%emt 0:00:01]} c6 {[%emt 0:
00:00]} 3. Nc3 {[%emt 0:00:02]} Nf6 {[%emt 0:00:01]} 4. Nf3 {[%emt 0:00:04]} a6
{[%emt 0:00:01]} 5. Qb3 {[%emt 0:00:09]} dxc4 {[%emt 0:00:10]} 6. Qxc4 {
[%emt 0:00:02]} b5 {[%emt 0:00:01]} 7. Qb3 {[%emt 0:00:01]} e6 {[%emt 0:00:08]}
8. Bg5 {[%emt 0:00:09]} Nbd7 {[%emt 0:00:09]} 9. e4 {[%emt 0:00:07]} h6 {
[%emt 0:00:13]} 10. Bxf6 {[%emt 0:00:20]} Nxf6 {[%emt 0:00:02]} 11. a3 {
[%emt 0:00:16]} c5 {[%emt 0:00:09]} 12. Rd1 {[%emt 0:00:28]} Qa5 {[%emt 0:00:
26]} 13. e5 {[%emt 0:00:42]} c4 {[%emt 0:00:17]} 14. Qc2 {[%emt 0:00:09]} Nd5 {
[%emt 0:00:02]} 15. Be2 {[%emt 0:00:08]} Nxc3 {[%emt 0:00:10]} 16. bxc3 {
[%emt 0:00:01]} Bb7 {[%emt 0:00:03]} 17. a4 {[%emt 0:00:30]} b4 {[%emt 0:00:22]
} 18. cxb4 {[%emt 0:00:09]} Bxb4+ {[%emt 0:00:06]} 19. Kf1 {[%emt 0:00:01]} Rc8
{[%emt 0:00:04]} 20. Rb1 {[%emt 0:00:04]} Bd5 {[%emt 0:00:05]} 21. h4 {[%emt 0:
00:09]} O-O {[%emt 0:00:15]} 22. Kg1 {[%emt 0:00:01]} Be7 {[%emt 0:00:05]} 23.
h5 {[%emt 0:00:07]} Rb8 {[%emt 0:00:07]} 24. Kh2 {[%emt 0:00:02]} c3 {[%emt 0:
00:04]} 25. Rhc1 {[%emt 0:00:04]} Rxb1 {[%emt 0:00:05]} 26. Rxb1 {[%emt 0:00:
01]} Rc8 {[%emt 0:00:01]} 27. Bd3 {[%emt 0:00:02]} Bc6 {[%emt 0:00:04]} 28. Ra1
{[%emt 0:00:01]} Bxf3 {[%emt 0:00:03]} 29. gxf3 {[%emt 0:00:01]} Qd5 {[%emt 0:
00:00]} 30. Bxa6 {[%emt 0:00:04]} Rc7 {[%emt 0:00:09]} 31. Be2 {[%emt 0:00:03]}
Qxd4 {[%emt 0:00:02]} 32. Qe4 {[%emt 0:00:02]} Qxf2+ {[%emt 0:00:05]} 33. Kh3 {
[%emt 0:00:01]} c2 {[%emt 0:00:27]} 34. Bd3 {[%emt 0:00:00]} Kf8 {[%emt 0:00:
03]} 35. Rc1 {[%emt 0:00:03]} Qd2 {[%emt 0:00:01]} 36. Rxc2 {[%emt 0:00:01]}
Rxc2 {[%emt 0:00:02]} 37. Qa8+ {[%emt 0:00:03]} Bd8 {[%emt 0:00:02]} 38. Qxd8#
{[%emt 0:00:01]} 1-0

[Event "FIDE Women World Blitz 2021"]
[Site "Warsaw"]
[Date "2021.12.29"]
[Round "2.4"]
[White "Malicka, Maria"]
[Black "Dworakowska, Joanna"]
[Result "0-1"]
[ECO "B95"]
[WhiteElo "2307"]
[BlackElo "2228"]
[Annotator "NA"]
[PlyCount "68"]
[EventDate "2021.12.29"]
[EventType "swiss"]
[EventCountry "POL"]
[Tiebreak "Cut1 Buchholz"]
[SourceTitle "playchess.com"]
[Source "ChessBase"]
[SourceQuality "1"]
[TimeControl "180+2"]

1. e4 {[%emt 0:00:02]} c5 {[%emt 0:00:01]} 2. Nf3 {[%emt 0:00:01]} d6 {[%emt 0:
00:00]} 3. d4 {[%emt 0:00:00]} cxd4 {[%emt 0:00:01]} 4. Nxd4 {[%emt 0:00:01]}
Nf6 {[%emt 0:00:01]} 5. Nc3 {[%emt 0:00:00]} a6 {[%emt 0:00:01]} 6. f3 {
[%emt 0:00:02]} e6 {[%emt 0:00:01]} 7. Bg5 {[%emt 0:00:01]} Be7 {[%emt 0:00:02]
} 8. f4 {[%emt 0:00:02]} Nbd7 {[%emt 0:00:01]} 9. Qf3 {[%emt 0:00:03]} Qc7 {
[%emt 0:00:01]} 10. O-O-O {[%emt 0:00:02]} h6 {[%emt 0:00:01]} 11. Bxf6 {
[%emt 0:00:04]} Bxf6 {[%emt 0:00:07]} 12. g4 {[%emt 0:00:05]} Nb6 {[%emt 0:00:
03]} 13. h4 {[%emt 0:00:02]} Bxd4 {[%emt 0:00:04]} 14. g5 {[%emt 0:00:01]} Qc5
{[%emt 0:00:01]} 15. Rxd4 {[%emt 0:00:09]} Bd7 {[%emt 0:00:11]} 16. Rd2 {
[%emt 0:00:28]} Bb5 {[%emt 0:00:30]} 17. Be2 {[%emt 0:00:15]} Bxe2 {[%emt 0:00:
10]} 18. Rhd1 {[%emt 0:00:43]} O-O-O {[%emt 0:00:10]} 19. Nxe2 {[%emt 0:00:11]}
Kb8 {[%emt 0:00:07]} 20. Rd3 {[%emt 0:00:02]} Qb5 {[%emt 0:00:11]} 21. Rc3 {
[%emt 0:00:09]} Qd7 {[%emt 0:00:07]} 22. Nd4 {[%emt 0:00:05]} Qc7 {[%emt 0:00:
10]} 23. Rb3 {[%emt 0:00:16]} e5 {[%emt 0:00:08]} 24. f5 {[%emt 0:00:01]} hxg5
{[%emt 0:00:03]} 25. Ne2 {[%emt 0:00:01]} Rc8 {[%emt 0:00:10]} 26. hxg5 {
[%emt 0:00:13]} Ka7 {[%emt 0:00:21]} 27. Qd3 {[%emt 0:00:04]} Qe7 {[%emt 0:00:
15]} 28. Rc3 {[%emt 0:00:15]} Rc6 {[%emt 0:00:04]} 29. Qe3 {[%emt 0:00:06]} Qc7
{[%emt 0:00:19]} 30. Rb3 {[%emt 0:00:04]} Kb8 {[%emt 0:00:01]} 31. Nc3 {
[%emt 0:00:24]} Rc8 {[%emt 0:00:03]} 32. Qe2 {[%emt 0:00:06]} Na4 {[%emt 0:00:
04]} 33. Rh1 {[%emt 0:00:01]} Qa5 {[%emt 0:00:09]} 34. Rh3 {[%emt 0:00:02]}
Nxc3 {[%emt 0:00:23]} 0-1

[Event "FIDE Women World Blitz 2021"]
[Site "Warsaw"]
[Date "2021.12.29"]
[Round "2.4"]
[White "Babiy, Olga"]
[Black "Gunina, Valentina"]
[Result "0-1"]
[ECO "D02"]
[WhiteElo "2179"]
[BlackElo "2480"]
[Annotator "ChessBase"]
[PlyCount "53"]
[EventDate "2021.12.29"]
[EventType "swiss"]
[EventCountry "POL"]
[Tiebreak "Cut1 Buchholz"]
[SourceTitle "playchess.com"]
[Source "ChessBase"]
[SourceQuality "1"]
[TimeControl "180+2"]

1. d4 {[%emt 0:00:01]} d5 {[%emt 0:00:01]} 2. Bf4 {[%emt 0:00:01]} c5 {[%emt 0:
00:02]} 3. e3 {[%emt 0:00:01]} Nc6 {[%emt 0:00:01]} 4. Nf3 {[%emt 0:00:04]} Nf6
{[%emt 0:00:05]} 5. Nbd2 {[%emt 0:00:04]} Qb6 {[%emt 0:00:03]} 6. dxc5 {
[%emt 0:00:05]} Qxb2 {[%emt 0:00:02]} 7. Rb1 {[%emt 0:00:01]} Qc3 {[%emt 0:00:
01]} 8. Bb5 {[%emt 0:00:01]} Bd7 {[%emt 0:00:21]} 9. Ba4 {[%emt 0:00:24]} Qa5 {
[%emt 0:00:20]} 10. c4 {[%emt 0:00:13]} dxc4 {[%emt 0:00:57]} 11. O-O {[%emt 0:
00:14]} c3 {[%emt 0:00:09]} 12. Rb5 {[%emt 0:00:49]} Qa6 {[%emt 0:00:17]} 13.
Nc4 {[%emt 0:00:01]} e5 {[%emt 0:00:01]} 14. Bg5 {[%emt 0:00:46]} e4 {[%emt 0:
00:02]} 15. Nfe5 {[%emt 0:00:38]} Nxe5 {[%emt 0:00:05]} 16. Nxe5 {[%emt 0:00:
00]} Bxb5 {[%emt 0:00:06]} 17. Qb3 {[%emt 0:00:01]} Bxa4 {[%emt 0:00:05]} 18.
Qxf7+ {[%emt 0:00:01]} Kd8 {[%emt 0:00:01]} 19. Rd1+ {[%emt 0:00:06]} Kc8 {
[%emt 0:00:16]} 20. Bxf6 {[%emt 0:00:07]} Qxf6 {[%emt 0:00:06]} 21. Qd5 {
[%emt 0:00:03]} Be7 {[%emt 0:00:07]} 22. Rb1 {[%emt 0:00:01]} Bc6 {[%emt 0:00:
04]} 23. Nxc6 {[%emt 0:00:02]} Qxc6 {[%emt 0:00:02]} 24. Qf5+ {[%emt 0:00:02]}
Qd7 {[%emt 0:00:01]} 25. Qxe4 {[%emt 0:00:03]} Rd8 {[%emt 0:00:02]} 26. h3 {
[%emt 0:00:02]} Bxc5 {[%emt 0:00:01]} 27. Qc4 {[%emt 0:00:05]} 0-1

[Event "FIDE Women World Blitz 2021"]
[Site "Warsaw"]
[Date "2021.12.29"]
[Round "2.5"]
[White "Goryachkina, Aleksandra"]
[Black "Maisuradze, Nino"]
[Result "1-0"]
[ECO "A61"]
[WhiteElo "2604"]
[BlackElo "2175"]
[Annotator "ChessBase"]
[PlyCount "46"]
[EventDate "2021.12.29"]
[EventType "swiss"]
[EventCountry "POL"]
[Tiebreak "Cut1 Buchholz"]
[SourceTitle "playchess.com"]
[Source "ChessBase"]
[SourceQuality "1"]
[TimeControl "180+2"]

1. d4 {[%emt 0:00:01]} Nf6 {[%emt 0:00:01]} 2. c4 {[%emt 0:00:02]} c5 {[%emt 0:
00:00]} 3. d5 {[%emt 0:00:02]} e6 {[%emt 0:00:01]} 4. Nc3 {[%emt 0:00:02]} exd5
{[%emt 0:00:00]} 5. cxd5 {[%emt 0:00:02]} d6 {[%emt 0:00:01]} 6. Nf3 {[%emt 0:
00:03]} g6 {[%emt 0:00:01]} 7. Bf4 {[%emt 0:00:02]} a6 {[%emt 0:00:03]} 8. a4 {
[%emt 0:00:02]} Bg7 {[%emt 0:00:01]} 9. h3 {[%emt 0:00:03]} O-O {[%emt 0:00:02]
} 10. e3 {[%emt 0:00:01]} Ne8 {[%emt 0:00:31]} 11. Be2 {[%emt 0:00:09]} Nd7 {
[%emt 0:00:12]} 12. O-O {[%emt 0:00:03]} Qe7 {[%emt 0:00:16]} 13. a5 {[%emt 0:
00:11]} f5 {[%emt 0:00:11]} 14. Re1 {[%emt 0:00:11]} Ne5 {[%emt 0:00:18]} 15.
Bh2 {[%emt 0:00:34]} Bd7 {[%emt 0:00:23]} 16. Nd2 {[%emt 0:00:05]} Nc7 {
[%emt 0:00:09]} 17. Qb3 {[%emt 0:00:18]} Rab8 {[%emt 0:00:21]} 18. Bf1 {
[%emt 0:00:29]} Kh8 {[%emt 0:00:07]} 19. f4 {[%emt 0:00:11]} Nf7 {[%emt 0:00:
02]} 20. Kh1 {[%emt 0:00:02]} Rfe8 {[%emt 0:00:16]} 21. Bd3 {[%emt 0:00:07]} h6
{[%emt 0:00:27]} 22. e4 {[%emt 0:00:03]} Qh4 {[%emt 0:00:16]} 23. Nf3 {[%emt 0:
00:05]} Qf6 {[%emt 0:00:09]} 1-0

[Event "FIDE Women World Blitz 2021"]
[Site "Warsaw"]
[Date "2021.12.29"]
[Round "2.5"]
[White "Rudzinska, Michalina"]
[Black "Lach, Aleksandra"]
[Result "0-1"]
[ECO "A04"]
[WhiteElo "1832"]
[BlackElo "2204"]
[Annotator "NA"]
[PlyCount "90"]
[EventDate "2021.12.29"]
[EventType "swiss"]
[EventCountry "POL"]
[Tiebreak "Cut1 Buchholz"]
[SourceTitle "playchess.com"]
[Source "ChessBase"]
[SourceQuality "1"]
[TimeControl "180+2"]

1. Nf3 {[%emt 0:00:01]} c5 {[%emt 0:00:03]} 2. b3 {[%emt 0:00:02]} d6 {[%emt 0:
00:03]} 3. Bb2 {[%emt 0:00:02]} Nc6 {[%emt 0:00:00]} 4. e3 {[%emt 0:00:03]} e5
{[%emt 0:00:06]} 5. d4 {[%emt 0:00:04]} cxd4 {[%emt 0:00:07]} 6. exd4 {[%emt 0:
00:02]} e4 {[%emt 0:00:01]} 7. Nfd2 {[%emt 0:00:23]} d5 {[%emt 0:00:01]} 8. Be2
{[%emt 0:00:17]} Nf6 {[%emt 0:00:07]} 9. O-O {[%emt 0:00:12]} Be7 {[%emt 0:00:
14]} 10. Re1 {[%emt 0:00:07]} O-O {[%emt 0:00:01]} 11. f3 {[%emt 0:00:03]} exf3
{[%emt 0:00:14]} 12. Bxf3 {[%emt 0:00:05]} Bf5 {[%emt 0:00:06]} 13. Nf1 {
[%emt 0:00:06]} Bb4 {[%emt 0:00:28]} 14. c3 {[%emt 0:00:02]} Bd6 {[%emt 0:00:
01]} 15. Ne3 {[%emt 0:00:06]} Ne7 {[%emt 0:00:15]} 16. Nd2 {[%emt 0:00:14]} Qc7
{[%emt 0:00:04]} 17. Ndf1 {[%emt 0:00:01]} Rad8 {[%emt 0:00:15]} 18. Rc1 {
[%emt 0:00:02]} Qa5 {[%emt 0:00:16]} 19. a4 {[%emt 0:00:18]} Be4 {[%emt 0:00:
08]} 20. c4 {[%emt 0:00:10]} Bb4 {[%emt 0:00:01]} 21. Re2 {[%emt 0:00:10]} Bxf3
{[%emt 0:00:09]} 22. gxf3 {[%emt 0:00:02]} dxc4 {[%emt 0:00:01]} 23. Nxc4 {
[%emt 0:00:08]} Qf5 {[%emt 0:00:12]} 24. Rg2 {[%emt 0:00:03]} Ng6 {[%emt 0:00:
03]} 25. Nfe3 {[%emt 0:00:04]} Qh5 {[%emt 0:00:05]} 26. Qf1 {[%emt 0:00:20]}
Nf4 {[%emt 0:00:11]} 27. Rg3 {[%emt 0:00:02]} N6d5 {[%emt 0:00:02]} 28. Ng4 {
[%emt 0:00:19]} Kh8 {[%emt 0:00:08]} 29. Nce5 {[%emt 0:00:18]} f6 {[%emt 0:00:
01]} 30. Nd3 {[%emt 0:00:05]} Nxd3 {[%emt 0:00:09]} 31. Qxd3 {[%emt 0:00:01]}
Nf4 {[%emt 0:00:00]} 32. Qe4 {[%emt 0:00:04]} Bd6 {[%emt 0:00:09]} 33. Rd1 {
[%emt 0:00:04]} Rde8 {[%emt 0:00:06]} 34. Qc2 {[%emt 0:00:05]} Ne2+ {[%emt 0:
00:02]} 35. Kg2 {[%emt 0:00:01]} Nf4+ {[%emt 0:00:05]} 36. Kg1 {[%emt 0:00:03]}
f5 {[%emt 0:00:05]} 37. Nf2 {[%emt 0:00:03]} Ne2+ {[%emt 0:00:05]} 38. Kg2 {
[%emt 0:00:01]} Bxg3 {[%emt 0:00:02]} 39. hxg3 Qg5 40. Nh1 {[%emt 0:00:04]}
Nf4+ {[%emt 0:00:03]} 41. Kf1 {[%emt 0:00:03]} Nh5 {[%emt 0:00:07]} 42. Kf2 {
[%emt 0:00:02]} f4 {[%emt 0:00:00]} 43. g4 {[%emt 0:00:02]} Qh4+ {[%emt 0:00:
01]} 44. Kg2 {[%emt 0:00:02]} Ng3 {[%emt 0:00:02]} 45. Qf2 {[%emt 0:00:02]} Re2
{[%emt 0:00:00]} 0-1

[Event "FIDE Women World Blitz 2021"]
[Site "Warsaw"]
[Date "2021.12.29"]
[Round "2.6"]
[White "Nomin-Erdene, Davaademberel"]
[Black "Wikar, Martyna"]
[Result "1-0"]
[ECO "B32"]
[WhiteElo "2188"]
[BlackElo "1899"]
[Annotator "NA"]
[PlyCount "103"]
[EventDate "2021.12.29"]
[EventType "swiss"]
[EventCountry "POL"]
[Tiebreak "Cut1 Buchholz"]
[SourceTitle "playchess.com"]
[Source "ChessBase"]
[SourceQuality "1"]
[TimeControl "180+2"]

1. e4 {[%emt 0:00:01]} c5 {[%emt 0:00:01]} 2. Nf3 {[%emt 0:00:01]} Nc6 {
[%emt 0:00:01]} 3. d4 {[%emt 0:00:01]} cxd4 {[%emt 0:00:01]} 4. Nxd4 {[%emt 0:
00:01]} e5 {[%emt 0:00:02]} 5. Nb5 {[%emt 0:00:07]} d6 {[%emt 0:00:01]} 6. N1c3
{[%emt 0:00:02]} a6 {[%emt 0:00:01]} 7. Na3 {[%emt 0:00:01]} Be6 {[%emt 0:00:
02]} 8. Nc4 {[%emt 0:00:04]} Rb8 {[%emt 0:00:01]} 9. Ne3 {[%emt 0:00:03]} Nf6 {
[%emt 0:00:09]} 10. g3 {[%emt 0:00:01]} g6 {[%emt 0:00:02]} 11. Bg2 {[%emt 0:
00:01]} Bg7 {[%emt 0:00:01]} 12. O-O {[%emt 0:00:01]} O-O {[%emt 0:00:03]} 13.
f4 {[%emt 0:00:07]} Nd4 {[%emt 0:00:30]} 14. f5 {[%emt 0:00:09]} Bd7 {[%emt 0:
00:02]} 15. Ncd5 {[%emt 0:00:37]} Nxd5 {[%emt 0:00:09]} 16. Nxd5 {[%emt 0:00:
01]} gxf5 {[%emt 0:00:13]} 17. c3 {[%emt 0:00:01]} Nc6 {[%emt 0:00:24]} 18.
exf5 {[%emt 0:00:01]} f6 {[%emt 0:00:02]} 19. Be3 {[%emt 0:00:08]} b5 {[%emt 0:
00:11]} 20. Qd2 {[%emt 0:00:01]} Rf7 {[%emt 0:00:26]} 21. Rad1 {[%emt 0:00:04]}
Bf8 {[%emt 0:00:04]} 22. Qf2 {[%emt 0:00:09]} Ne7 {[%emt 0:00:16]} 23. Nxe7+ {
[%emt 0:00:22]} Qxe7 {[%emt 0:00:02]} 24. Bd5 {[%emt 0:00:01]} Kh8 {[%emt 0:00:
01]} 25. Bxf7 {[%emt 0:00:02]} Qxf7 {[%emt 0:00:01]} 26. Qf3 {[%emt 0:00:19]}
Bc8 {[%emt 0:00:13]} 27. Qd5 {[%emt 0:00:03]} Qxd5 {[%emt 0:00:09]} 28. Rxd5 {
[%emt 0:00:01]} Bb7 {[%emt 0:00:01]} 29. Rd2 {[%emt 0:00:01]} d5 {[%emt 0:00:
01]} 30. g4 {[%emt 0:00:02]} b4 {[%emt 0:00:06]} 31. h4 {[%emt 0:00:29]} Rc8 {
[%emt 0:00:14]} 32. g5 {[%emt 0:00:24]} bxc3 {[%emt 0:00:04]} 33. bxc3 {
[%emt 0:00:01]} Rxc3 {[%emt 0:00:04]} 34. Rb1 {[%emt 0:00:02]} Rxe3 {[%emt 0:
00:21]} 35. Rxb7 {[%emt 0:00:01]} Bc5 {[%emt 0:00:06]} 36. Kg2 {[%emt 0:00:05]}
Re4 {[%emt 0:00:04]} 37. Rc2 {[%emt 0:00:02]} Rc4 {[%emt 0:00:04]} 38. Rxc4 {
[%emt 0:00:03]} dxc4 {[%emt 0:00:01]} 39. gxf6 {[%emt 0:00:01]} Kg8 {[%emt 0:
00:01]} 40. Rc7 {[%emt 0:00:02]} Bd4 {[%emt 0:00:02]} 41. Rxc4 {[%emt 0:00:04]}
Kf7 {[%emt 0:00:01]} 42. Rc6 {[%emt 0:00:01]} a5 {[%emt 0:00:01]} 43. Kf3 {
[%emt 0:00:04]} h5 {[%emt 0:00:02]} 44. Ke4 {[%emt 0:00:03]} a4 {[%emt 0:00:01]
} 45. Ra6 {[%emt 0:00:02]} a3 {[%emt 0:00:02]} 46. Rxa3 {[%emt 0:00:03]} Kxf6 {
[%emt 0:00:01]} 47. Ra6+ {[%emt 0:00:01]} Kf7 {[%emt 0:00:01]} 48. Rh6 {
[%emt 0:00:04]} Kg7 {[%emt 0:00:04]} 49. Rxh5 {[%emt 0:00:03]} Bb2 {[%emt 0:00:
02]} 50. Rg5+ {[%emt 0:00:02]} Kf6 {[%emt 0:00:01]} 51. Rg6+ {[%emt 0:00:00]}
Kf7 {[%emt 0:00:01]} 52. h5 {[%emt 0:00:04]} 1-0